bitfinex/quotes_ETHUSD_20220106
["timestamp","ask_amount","ask_price","bid_price","bid_amount"]
[1641471471517,0.00113685,3342.8,3342.4,0.74806]
[1641471472920,0.00113685,3342.8,3342.5,2.52082397]
[1641471473765,0.00113685,3342.8,3342.4,0.74806]
[1641471473962,0.00113685,3342.8,3342.2,1.49838369]
[1641471474262,0.00113685,3342.8,3342.3,0.00170527]
[1641471475263,0.00113685,3342.8,3342.3,2.52015471]
[1641471475464,0.74920685,3342.8,3342.4,0.74805]
[1641471475762,0.00113685,3342.8,3342.4,0.74918684]
[1641471475963,0.00113685,3342.8,3342.4,0.00113684]
[1641471476366,0.00113685,3342.8,3342.1,0.7480625]
[1641471476367,0.00113685,3342.8,3342.5,2.51844944]
[1641471477216,1.13747288,3342.8,3342.3,0.00170527]
[1641471477617,2.4693319,3342.5,3342.0,0.00341054]
[1641471477916,2.4693319,3342.5,3342.2,0.74812]
[1641471478319,2.4693319,3342.5,3342.3,0.00170527]
[1641471478922,2.4693319,3342.5,3342.3,2.52512232]
[1641471479317,2.4693319,3342.5,3342.4,0.00113684]
[1641471480596,2.59619232,3342.5,3342.4,0.00113684]
[1641471480995,2.59619232,3342.5,3342.2,0.00227369]
[1641471481397,2.59619232,3342.5,3342.1,0.00284211]
[1641471481796,0.12686042,3342.4,3342.1,2.52200614]
[1641471482198,0.12686042,3342.4,3342.2,0.75038369]
[1641471482593,0.12686042,3342.4,3342.3,0.00170527]
[1641471482796,0.12686042,3342.4,3342.3,0.74970527]
[1641471482994,0.12686042,3342.4,3342.3,7.31434508]
[1641471483193,1.13940731,3342.8,3342.3,10.83350911]
[1641471483394,1.13940731,3342.8,3342.6,1.4958358]
[1641471483993,1.13940731,3342.8,3342.7,0.74791]
[1641471484332,0.00113685,3342.8,3342.6,1.4958358]
[1641471484532,0.00113685,3342.8,3342.6,0.7479]
[1641471484930,1.68439189,3342.8,3342.4,2.81458192]
[1641471485934,1.81125231,3342.8,3342.7,2.51916403]
[1641471486431,1.68439189,3342.8,3342.5,2.51916403]
[1641471486631,0.74812,3342.7,3342.5,2.51916403]
[1641471490171,0.00113685,3342.8,3342.5,2.51916403]
[1641471490375,0.00113685,3342.8,3342.5,4.5779207]
[1641471490669,0.00113685,3342.8,3342.5,2.51916403]
[1641471491926,0.00113685,3342.8,3342.6,1.4958749]
[1641471492924,0.00113685,3342.8,3342.7,2.51916403]
[1641471493325,0.00113685,3342.8,3342.7,4.58367164]
[1641471493524,0.00113685,3342.8,3342.7,2.51916403]
[1641471498374,0.00113685,3342.8,3342.7,4.57213471]
[1641471498574,0.00113685,3342.8,3342.7,5.57213471]
[1641471498777,0.00113685,3342.8,3342.7,12.85213471]
[1641471498973,0.00113685,3342.8,3342.7,6.00213471]
[1641471499174,1.49127911,3343.4,3342.8,13.10280879]
[1641471499428,1.49127911,3343.4,3343.3,2.01424469]
[1641471499733,0.00341054,3343.4,3343.3,4.91971549]
[1641471500032,0.6761207,3343.5,3343.4,1.70791524]
[1641471500229,2.23723509,3343.9,3343.5,11.45]
[1641471500428,2.23723509,3343.9,3343.6,2.36339478]
[1641471500629,2.23723509,3343.9,3343.6,3.66339478]
[1641471501230,4.86976248,3344.7,3343.6,3.66339478]
[1641471501434,1.11416228,3344.7,3344.0,0.747495]
[1641471501631,1.11416228,3344.7,3344.3,1.49502]
[1641471501831,1.11416228,3344.7,3344.3,2.78286652]
[1641471503069,6.28316228,3345.1,3344.4,0.74751]
[1641471503470,0.00738951,3344.7,3344.4,0.74751]
[1641471503672,0.00738951,3344.7,3344.5,2.05349717]
[1641471503871,0.00682108,3344.6,3344.5,2.05349717]
[1641471506917,0.00682108,3344.6,3344.5,4.08958236]
[1641471507322,0.00682108,3344.6,3344.5,4.09225852]
[1641471507719,0.00682108,3344.6,3344.5,2.05349717]
[1641471509121,0.00682108,3344.6,3344.5,4.09718361]
[1641471509521,0.00682108,3344.6,3344.5,2.05349717]
[1641471512172,0.00682108,3344.6,3344.5,3.05349717]
[1641471512371,0.00682108,3344.6,3344.5,4.61981483]
[1641471512570,5.169,3345.1,3344.6,11.95]
[1641471512772,1.11416228,3345.5,3344.5,5.61981483]
[1641471512773,1.11416228,3345.5,3344.9,10.6]
[1641471512972,1.11416228,3345.5,3345.0,7.85]
[1641471513274,0.00227369,3345.4,3345.1,2.42940136]
[1641471513472,0.00227369,3345.4,3345.1,3.72940136]
[1641471513670,0.00170527,3345.3,3345.1,5.22383136]
[1641471513875,0.00170527,3345.3,3345.2,8.04722]
[1641471514070,0.62857794,3345.6,3345.4,5.06790251]
[1641471514320,0.62857794,3345.6,3345.4,1.16790251]
[1641471514520,0.62857794,3345.6,3345.5,15.52131379]
[1641471514722,0.62857794,3345.6,3345.5,2.57131379]
[1641471514927,6.17,3346.1,3345.6,7.7]
[1641471515122,6.21754276,3346.1,3345.8,0.7471]
[1641471515323,0.00227369,3346.0,3345.8,0.7471]
[1641471515527,0.00227369,3346.0,3345.9,1.68392432]
[1641471515826,6.21754276,3346.1,3346.0,1.22211941]
[1641471516021,6.21754276,3346.1,3346.0,1.52211941]
[1641471516223,6.22038488,3346.1,3346.0,1.52211941]
[1641471517425,6.22038488,3346.1,3346.0,2.52211941]
[1641471517623,6.22038488,3346.1,3346.0,10.90211941]
[1641471518280,0.05038488,3346.1,3346.0,2.95211941]
[1641471518681,6.17,3347.0,3346.1,10.55]
[1641471518883,6.17,3347.0,3346.9,1.35253484]
[1641471522727,6.17,3347.0,3346.9,3.71166555]
[1641471522928,6.17,3347.0,3346.9,1.65253484]
[1641471523928,6.17,3347.0,3346.9,3.76149225]
[1641471524131,0.6761207,3347.6,3346.9,4.76149225]
[1641471524328,0.6761207,3347.6,3347.5,1.32233408]
[1641471525329,0.6761207,3347.6,3347.5,3.07950286]
[1641471526577,0.6761207,3347.6,3347.5,5.20806156]
[1641471526977,0.6761207,3347.6,3347.5,5.50806156]
[1641471528879,0.6761207,3347.6,3347.5,2.1285587]
[1641471529078,0.6761207,3347.6,3342.4,27.26143081]
[1641471529335,0.6761207,3347.6,3278.8,125.85]
[1641471529336,8.3,3347.5,3346.0,0.01254442]
[1641471529534,0.01279501,3346.5,3346.1,0.43]
[1641471529734,0.01279501,3346.5,3346.3,1.49388]
[1641471530034,0.00170527,3346.4,3346.0,0.74707]
[1641471530434,0.00113684,3346.3,3346.0,0.74707]
[1641471530834,0.00170527,3346.4,3346.0,0.74707]
[1641471531033,0.00170527,3346.4,3345.7,0.7493737]
[1641471531034,0.00170527,3346.4,3345.7,1.7493737]
[1641471531241,2.14922606,3345.9,3345.7,1.7965037]
[1641471531438,0.0010429,3346.2,3345.8,0.00170527]
[1641471531835,0.0010429,3346.2,3345.2,0.00511582]
[1641471532040,0.0010429,3346.2,3344.9,0.43]
[1641471532041,0.01208169,3345.8,3345.0,0.00625266]
[1641471532236,0.01208169,3345.8,3345.2,2.53474828]
[1641471532637,0.01208169,3345.8,3345.3,0.00454739]
[1641471533792,0.01208169,3345.8,3345.0,0.00625266]
[1641471534989,0.01208169,3345.8,3345.1,2.83492075]
[1641471535390,0.01208169,3345.8,3345.2,0.00511582]
[1641471536394,0.01208169,3345.8,3345.0,0.00625266]
[1641471537633,0.01208169,3345.8,3344.8,0.74733]
[1641471537832,0.01208169,3345.8,3344.9,0.00682109]
[1641471538431,0.01208169,3345.8,3344.9,2.14823472]
[1641471538633,0.01208169,3345.8,3344.9,3.14845929]
[1641471538832,0.01208169,3345.8,3345.0,0.00625266]
[1641471539035,0.01208169,3345.8,3345.0,0.75353266]
[1641471539433,0.01208169,3345.8,3345.1,0.00568424]
[1641471539632,1.805868,3345.5,3345.1,0.00568424]
[1641471540034,1.805868,3345.5,3345.1,2.14823472]
[1641471540436,1.805868,3345.5,3345.2,0.00511582]
[1641471540673,0.3,3345.4,3345.2,0.00511582]
[1641471540872,3.969,3345.4,3345.2,0.00511582]
[1641471541076,2.19526644,3344.7,3344.2,0.01080005]
[1641471541675,0.00104318,3344.7,3344.2,0.01080005]
[1641471542172,0.00104318,3344.7,3344.2,0.75826005]
[1641471542574,0.00104318,3344.7,3344.3,2.163977]
[1641471542973,0.00104318,3344.7,3344.4,0.0096632]
[1641471543775,0.00104318,3344.7,3344.4,2.16340857]
[1641471544174,0.00104318,3344.7,3344.5,0.00909478]
[1641471544435,14.13887498,3344.6,3344.5,2.16284015]
[1641471544628,14.13887498,3344.6,3343.8,1.12150765]
[1641471544629,10.8,3344.5,3343.8,1.12150765]
[1641471545030,1.0,3344.4,3343.9,0.00341054]
[1641471545429,10.8,3344.5,3343.9,0.00341054]
[1641471545430,11.54778,3344.5,3343.9,0.00341054]
[1641471545631,1.0,3344.4,3343.9,0.00341054]
[1641471545829,1.74777,3344.4,3343.9,0.00341054]
[1641471546430,1.66965676,3344.3,3343.9,0.00341054]
[1641471546631,2.66965676,3344.3,3343.9,0.00341054]
[1641471546833,2.66965676,3344.3,3343.3,0.00682108]
[1641471547234,1.66965676,3344.3,3343.3,0.00682108]
[1641471548475,1.66965676,3344.3,3343.2,0.0073895]
[1641471548673,3.9128,3344.4,3343.2,0.0073895]
[1641471549678,2.17415393,3344.1,3343.2,0.0073895]
[1641471549879,3.9128,3344.4,3343.2,0.0073895]
[1641471550979,1.88958131,3344.3,3343.2,0.0073895]
[1641471551182,1.88958131,3344.3,3343.2,1.12889715]
[1641471551381,3.9128,3344.4,3343.2,1.12889715]
[1641471551581,3.9128,3344.4,3343.3,0.00682108]
[1641471552046,3.9128,3344.4,3343.3,1.12832873]
[1641471552246,3.91384349,3344.4,3343.3,1.12832873]
[1641471552444,3.91384349,3344.4,3343.4,0.00625266]
[1641471552446,2.55885006,3344.3,3343.4,0.00625266]
[1641471552646,1.0,3344.2,3343.4,0.00625266]
[1641471553043,2.1393,3344.3,3343.4,0.00625266]
[1641471553246,11.9882401,3343.9,3343.0,1.49608467]
[1641471553446,11.9882401,3343.9,3342.5,1.12548436]
[1641471553447,11.95,3343.4,3342.5,1.12548436]
[1641471553646,2.98885006,3343.3,3343.1,5.27e-06]
[1641471553845,11.95,3343.1,3341.8,2.98970871]
[1641471554045,1.3,3343.0,3342.6,0.00284212]
[1641471554245,0.7483548,3342.9,3342.6,0.00284212]
[1641471554445,10.65,3342.6,3341.8,1.64555083]
[1641471554645,0.74833,3342.2,3341.8,1.64555083]
[1641471554848,0.74833,3342.2,3341.9,0.00397896]
[1641471554849,1.17833,3342.2,3341.9,0.00397896]
[1641471555348,1.17833,3342.2,3341.2,0.00795792]
[1641471555599,7.3,3342.1,3341.1,1.03704425]
[1641471555800,7.30511581,3342.1,3341.1,1.03704425]
[1641471555996,0.00454738,3342.0,3341.1,1.03704425]
[1641471556395,0.00397896,3341.9,3341.3,1.73989662]
[1641471556598,0.00397896,3341.9,3341.7,1.11274208]
[1641471556898,7.8102,3342.7,3341.7,1.11274208]
[1641471556899,0.00341054,3341.8,3341.7,1.11274208]
[1641471557099,0.00341054,3341.8,3341.7,13.36274208]
[1641471557502,0.00341054,3341.8,3341.7,14.36274208]
[1641471557697,0.00341054,3341.8,3341.7,13.36274208]
[1641471558099,1.59873751,3343.2,3342.3,1.01481359]
[1641471558300,1.59873751,3343.2,3341.7,1.04796]
[1641471558504,0.0073895,3343.1,3341.7,1.04796]
[1641471558700,0.0073895,3343.1,3341.7,1.11914739]
[1641471558899,0.00682108,3343.0,3341.7,1.11914739]
[1641471559101,5.0,3342.2,3341.7,1.11914739]
[1641471559341,5.0,3342.2,3341.8,1.00052038]
[1641471559533,0.00170527,3342.1,3341.9,0.43]
[1641471559832,5.0,3342.2,3342.0,14.43880171]
[1641471560033,5.0,3342.2,3342.1,12.58437009]
[1641471560034,4.62721952,3342.2,3342.1,12.58437009]
[1641471560234,4.62721952,3342.2,3342.1,14.33217009]
[1641471560830,4.62496761,3342.2,3342.1,14.33217009]
[1641471561235,4.62496761,3342.2,3342.1,2.38217009]
[1641471561733,4.62496761,3342.2,3342.1,4.94068494]
[1641471561934,4.62496761,3342.2,3342.1,8.44068494]
[1641471562433,4.62496761,3342.2,3342.1,5.88217009]
[1641471563280,4.62496761,3342.2,3338.7,0.224]
[1641471563494,4.62496761,3342.2,3276.2,0.01550079]
[1641471563685,0.6761207,3339.5,3339.3,17.45]
[1641471563883,0.6761207,3341.5,3339.3,17.45]
[1641471563884,0.01242761,3341.4,3339.8,6.23627837]
[1641471564283,1.01039947,3340.9,3339.9,0.01080005]
[1641471564483,0.57075036,3340.8,3339.9,0.01080005]
[1641471564882,1.74438519,3340.2,3339.9,0.01080005]
[1641471565184,0.01257029,3340.5,3339.5,0.74844]
[1641471565387,1.1832,3341.4,3339.6,0.43]
[1641471565584,1.1832,3341.4,3339.6,0.44250532]
[1641471565784,1.1832,3341.4,3339.7,0.0119369]
[1641471565983,1.1832,3341.4,3339.8,0.43]
[1641471566184,1.1832,3341.4,3339.8,1.17826]
[1641471566385,1.65587791,3340.7,3339.9,0.75905005]
[1641471566585,1.65587791,3340.7,3340.0,0.43]
[1641471566832,1.65587791,3340.7,3340.0,0.44023163]
[1641471567037,1.65587791,3340.7,3340.3,1.3087286]
[1641471567236,1.65587791,3340.7,3340.1,0.0096632]
[1641471567433,1.65587791,3340.7,3340.4,0.00795793]
[1641471567632,1.65587791,3340.7,3340.3,0.74821]
[1641471567833,1.65587791,3340.7,3340.3,1.04821]
[1641471568038,1.65587791,3340.7,3340.4,0.00795793]
[1641471568634,1.65587791,3340.7,3340.5,0.32680768]
[1641471569035,1.65587791,3340.7,3340.6,0.00682108]
[1641471569235,1.65587791,3340.7,3340.6,0.75498108]
[1641471569636,1.65587791,3340.7,3340.6,1.05498108]
[1641471570037,0.6761207,3341.5,3340.6,1.38178876]
[1641471570236,1.68652017,3341.5,3340.6,1.38178876]
[1641471570437,0.6761207,3341.5,3340.7,0.00625266]
[1641471570682,1.68652017,3341.5,3340.7,0.00625266]
[1641471570882,11.96214985,3340.8,3340.7,0.00625266]
[1641471571281,11.96214985,3340.8,3340.6,0.00682108]
[1641471571682,11.96214985,3340.8,3340.4,0.00795793]
[1641471571880,2.03993735,3340.7,3340.1,0.0096632]
[1641471572081,2.03993735,3340.7,3340.1,0.7579932]
[1641471572484,2.03993735,3340.7,3340.2,0.00909478]
[1641471574539,2.03993735,3340.7,3340.3,1.20958486]
[1641471574743,0.6761207,3341.5,3340.3,1.20958486]
[1641471574948,0.6761207,3341.5,3340.4,0.00795793]
[1641471575142,1.01039947,3341.4,3340.4,0.00795793]
[1641471575943,0.6761207,3341.5,3340.4,0.00795793]
[1641471576942,1.91992252,3341.0,3340.4,0.00795793]
[1641471578180,1.91992252,3341.0,3340.4,0.75612793]
[1641471578584,1.91992252,3341.0,3340.5,0.30738951]
[1641471578981,1.91992252,3341.0,3340.6,0.00682108]
[1641471579184,1.91992252,3341.0,3340.6,0.75501108]
[1641471579380,1.91992252,3341.0,3340.6,0.74819]
[1641471579582,1.91992252,3341.0,3340.7,0.00625266]
[1641471583343,0.6761207,3341.5,3340.7,0.00625266]
[1641471583545,0.6761207,3341.5,3340.7,3.27370729]
[1641471583750,0.6761207,3341.5,3277.7,7.9274]
[1641471583946,0.6761207,3341.5,3338.7,0.5]
[1641471583947,1.21618547,3338.9,3338.7,0.5]
[1641471584145,7.41708,3338.8,3338.7,0.5]
[1641471584349,3.516465,3338.8,3338.7,0.1136]
[1641471584546,3.516465,3338.8,3338.7,0.04172726]
[1641471584744,10.633945,3338.8,3338.7,0.01136847]
[1641471585146,10.633945,3338.8,3338.6,0.01193689]
[1641471585982,10.633945,3338.8,3338.5,0.01250532]
[1641471586382,10.633945,3338.8,3338.5,0.00056843]
[1641471586981,11.65,3338.6,3338.2,1.71801065]
[1641471587184,1.53355,3338.5,3338.1,1.49736]
[1641471587381,1.47842,3338.4,3338.3,0.00113684]
[1641471587581,13.9635,3338.4,3338.3,0.00113684]
[1641471587982,3.0135,3338.4,3338.3,0.00113684]
[1641471588783,10.3135,3338.4,3338.3,0.00113684]
[1641471589325,2.93375392,3338.4,3338.3,0.00113684]
[1641471589528,2.93375392,3338.4,3338.3,1.08800275]
[1641471589924,2.93375392,3338.4,3338.3,2.08800275]
[1641471590525,2.93375392,3338.4,3338.3,1.08800275]
[1641471590725,2.93375392,3338.4,3338.3,2.08800275]
[1641471590927,2.94630124,3338.4,3338.3,2.08800275]
[1641471591125,2.94630124,3338.4,3338.3,1.08800275]
[1641471591328,2.94630124,3338.4,3338.3,2.08800275]
[1641471591726,2.94630124,3338.4,3338.3,1.08800275]
[1641471591926,2.93375392,3338.4,3338.3,2.08800275]
[1641471592133,2.63187268,3338.4,3338.3,14.03800275]
[1641471592426,1.46891268,3338.4,3338.3,19.88316275]
[1641471592625,3.36731214,3338.8,3338.4,11.95]
[1641471592825,3.36731214,3338.8,3338.5,0.43]
[1641471593078,3.36731214,3338.8,3338.5,2.17959685]
[1641471593675,1.71222399,3338.6,3338.5,2.17959685]
[1641471593875,1.71222399,3338.6,3338.5,2.92804685]
[1641471595476,1.84968905,3338.7,3338.5,2.92804685]
[1641471595876,3.36731214,3338.8,3338.5,2.92804685]
[1641471597130,1.87271865,3338.6,3338.5,2.92804685]
[1641471597327,3.36731214,3338.8,3338.6,3.35]
[1641471597527,3.36506831,3338.8,3338.7,1.0]
[1641471597828,5.57729021,3338.8,3338.7,1.0]
[1641471598027,5.57729021,3338.8,3338.7,0.3]
[1641471598228,5.57729021,3338.8,3338.6,1.0]
[1641471598434,5.57729021,3338.8,3338.5,2.92804685]
[1641471599829,5.57729021,3338.8,3338.5,2.96646564]
[1641471600330,5.57729021,3338.8,3338.5,1.96646564]
[1641471602181,5.57729021,3338.8,3338.6,0.3]
[1641471602782,5.54587946,3338.8,3338.6,0.3]
[1641471603883,0.6761207,3339.5,3338.6,10.55]
[1641471604083,2.19151981,3339.4,3339.0,0.03244208]
[1641471604326,2.19549877,3339.4,3339.0,0.33765181]
[1641471604528,2.19549877,3339.4,3339.0,1.33948708]
[1641471604728,3.54774017,3339.4,3339.0,1.33948708]
[1641471605226,3.54774017,3339.4,3339.0,2.43851599]
[1641471606029,3.54774017,3339.4,3339.0,3.18695599]
[1641471607729,3.54774017,3339.4,3339.0,0.78792708]
[1641471608877,3.54774017,3339.4,3339.0,1.08792708]
[1641471609279,3.54774017,3339.4,3339.0,2.08792708]
[1641471610279,3.54774017,3339.4,3339.3,0.7485]
[1641471610479,7.29774017,3339.4,3339.3,0.7485]
[1641471611079,7.29774017,3339.4,3339.2,0.90939038]
[1641471611080,11.95,3339.3,3339.2,0.90939038]
[1641471611284,11.96253381,3339.3,3338.3,1.0]
[1641471611483,13.68492214,3338.6,3338.0,0.48645169]
[1641471611838,13.68492214,3338.6,3338.4,1.49735]
[1641471612241,13.68492214,3338.6,3338.5,0.00113685]
[1641471612641,14.69532161,3338.6,3338.5,0.00113685]
[1641471613042,14.69532161,3338.6,3338.0,0.00397896]
[1641471613243,14.69532161,3338.6,3338.2,0.00284212]
[1641471613439,11.95,3338.4,3337.8,0.05453273]
[1641471613640,12.96039947,3337.9,3337.8,0.05453273]
[1641471613840,11.55,3337.8,3336.8,0.2995938]
[1641471614240,15.33632601,3337.8,3337.1,0.00454739]
[1641471614439,12.96039947,3337.2,3337.1,0.00454739]
[1641471614642,12.96039947,3337.2,3336.7,0.00682108]
[1641471614643,0.0045,3337.1,3336.7,0.00682108]
[1641471614847,3.89928069,3337.1,3336.2,0.0096632]
[1641471615241,0.0045,3337.1,3336.2,0.0096632]
[1641471615988,0.0045,3337.1,3336.2,1.41873662]
[1641471616189,0.0045,3337.1,3336.2,2.41873662]
[1641471616391,0.0045,3337.1,3336.3,0.00909477]
[1641471616991,2.00234794,3336.5,3336.4,0.2996293]
[1641471617191,2.00234794,3336.5,3336.4,0.33752368]
[1641471617495,2.00234794,3336.5,3336.4,0.34605003]
[1641471618092,0.0045,3337.1,3336.4,0.79550073]
[1641471618291,0.0045,3337.1,3336.5,0.03367458]
[1641471618493,0.0045,3337.1,3336.5,0.00795793]
[1641471618690,0.0045,3337.1,3336.6,0.0073895]
[1641471618891,0.0045,3337.1,3336.5,0.04223161]
[1641471619091,0.0045,3337.1,3336.6,0.0073895]
[1641471619334,1.77794606,3337.0,3336.7,0.74909]
[1641471619534,1.77794606,3337.0,3336.7,1.04909]
[1641471619734,1.77794606,3337.0,3336.8,0.00625266]
[1641471620939,15.48386366,3336.9,3336.1,1.0]
[1641471621139,1.01039947,3336.2,3335.9,1.49842]
[1641471621337,1.02314166,3336.2,3335.4,0.07118739]
[1641471621537,1.01039947,3335.6,3335.4,0.07118739]
[1641471621737,11.02759354,3335.5,3335.4,0.07118739]
[1641471622135,11.02759354,3335.5,3335.4,0.07914531]
[1641471622639,11.02759354,3335.5,3334.6,0.74941]
[1641471622836,2.07759354,3335.5,3334.9,0.78841397]
[1641471623085,8.4809,3336.1,3334.9,0.03903397]
[1641471623289,8.4809,3336.1,3334.9,0.07118739]
[1641471623587,0.00341054,3336.0,3334.9,0.07118739]
[1641471623787,0.00341054,3336.0,3335.5,0.5244882]
[1641471623991,2.16141889,3335.7,3335.6,0.78331208]
[1641471624194,2.16141889,3335.7,3335.6,1.08428691]
[1641471624391,0.00170527,3335.7,3335.6,2.04927]
[1641471624792,0.00170527,3335.7,3335.6,0.74927]
[1641471625199,0.00170527,3335.7,3335.6,1.88882657]
[1641471625599,0.67782597,3335.7,3335.6,1.88882657]
[1641471625992,0.67782597,3335.7,3335.6,2.18882657]
[1641471626193,0.67782597,3335.7,3335.6,3.18882657]
[1641471626594,0.67782597,3335.7,3335.6,0.74927]
[1641471626841,0.67782597,3335.7,3335.3,1.0489764]
[1641471626842,0.67782597,3335.7,3335.3,0.74943]
[1641471627041,0.67782597,3335.7,3335.0,1.49882]
[1641471627241,0.67782597,3335.7,3335.0,2.49882]
[1641471627242,0.00113684,3335.6,3335.0,2.49882]
[1641471627445,0.00113684,3335.6,3335.1,0.00170528]
[1641471627641,0.79029947,3335.4,3335.1,1.00170528]
[1641471627845,1.66828156,3335.3,3335.1,1.00170528]
[1641471628041,1.66828156,3335.3,3335.2,0.00113685]
[1641471628242,5.2,3335.2,3335.1,1.0]
[1641471628442,5.2,3335.2,3335.0,1.49882]
[1641471630043,1.66828156,3335.3,3335.0,1.49882]
[1641471631792,2.45858103,3335.3,3335.0,1.49882]
[1641471632694,1.66828156,3335.3,3335.0,1.49882]
[1641471633096,1.65707695,3335.3,3335.0,1.49882]
[1641471633294,0.6761207,3335.5,3335.1,1.21741978]
[1641471633494,0.6761207,3335.5,3335.3,0.7494]
[1641471633693,0.00113684,3335.4,3335.3,0.7494]
[1641471634095,0.00113684,3335.4,3335.3,0.7823397]
[1641471634339,0.00113684,3335.4,3335.3,11.7323397]
[1641471634534,0.6761207,3335.5,3335.4,12.45234931]
[1641471634734,0.67385028,3335.5,3335.4,3.23624527]
[1641471635235,0.67385028,3335.5,3335.4,1.24734527]
[1641471635436,0.67385028,3335.5,3335.0,1.0]
[1641471635437,6.35,3335.4,3335.0,1.0]
[1641471635639,6.35,3335.4,3334.7,1.05490267]
[1641471635640,0.79029947,3335.3,3334.7,1.05490267]
[1641471635835,6.35,3335.4,3335.1,0.00170527]
[1641471636537,6.35,3335.4,3335.0,0.00227369]
[1641471636840,1.47282563,3336.5,3335.0,0.00227369]
[1641471636841,6.8685081,3339.2,3338.4,0.54663974]
[1641471637038,3.5,3340.6,3340.0,41.48801563]
[1641471637235,7.663,3340.7,3340.4,0.54663974]
[1641471637436,7.663,3340.7,3340.0,41.48801563]
[1641471637437,7.663,3340.7,3338.1,0.2221]
[1641471637634,7.663,3340.7,3271.9,0.01528155]
[1641471638135,4.96965762,3340.1,3339.6,1.0477488]
[1641471638338,4.96965762,3340.1,3338.5,1.5717992]
[1641471638339,3.0,3339.8,3338.4,0.5]
[1641471638632,2.96065762,3340.1,3338.1,1.53338063]
[1641471638633,0.01286095,3338.7,3338.1,1.53338063]
[1641471638836,11.95,3338.3,3337.5,0.1224]
[1641471639031,0.43,3338.5,3337.3,0.5]
[1641471639032,3.3334782,3338.2,3337.6,0.43]
[1641471639232,0.01818955,3338.2,3338.0,1.0]
[1641471639432,1.08485418,3338.6,3338.2,3.5]
[1641471639632,1.08485418,3338.6,3338.3,0.43]
[1641471639831,1.02485418,3338.6,3338.4,0.43]
[1641471640032,1.02485418,3338.6,3338.0,1.0]
[1641471640033,11.95,3338.5,3338.0,1.0]
[1641471640238,0.98042536,3338.0,3337.7,1.54586064]
[1641471640433,0.98042536,3338.0,3337.4,0.74894]
[1641471640634,0.98042536,3338.0,3337.8,0.00227369]
[1641471640837,0.98042536,3338.0,3337.5,0.00397896]
[1641471641033,0.35507237,3338.0,3337.5,0.00397896]
[1641471641335,0.35507237,3338.0,3337.7,0.5991317]
[1641471641336,1.61472306,3337.9,3337.7,0.5991317]
[1641471641633,1.61472306,3337.9,3337.8,0.75117369]
[1641471642240,1.19883306,3337.9,3337.8,0.75117369]
[1641471642642,1.19883306,3337.9,3337.8,0.00227369]
[1641471642840,11.95,3337.8,3337.2,1.498]
[1641471643040,11.95,3337.8,3337.7,0.00284212]
[1641471643243,12.99444725,3337.8,3337.7,0.00284212]
[1641471643443,12.99444725,3337.8,3337.5,0.00170527]
[1641471644443,12.99444725,3337.8,3337.3,0.5992309]
[1641471644643,12.99444725,3337.8,3337.4,0.0022737]
[1641471645042,1.04444725,3337.8,3337.4,0.0022737]
[1641471645245,1.05855725,3337.8,3337.2,0.60264344]
[1641471645442,1.05855725,3337.8,3337.2,0.75242054]
[1641471645706,1.05855725,3337.8,3337.3,0.00284212]
[1641471646511,1.05855725,3337.8,3337.5,0.5991889]
[1641471646712,1.05855725,3337.8,3337.6,0.74899]
[1641471646911,1.05855725,3337.8,3337.6,0.75012685]
[1641471649762,14.95,3337.7,3337.6,0.45012685]
[1641471649961,11.95,3337.7,3337.6,0.45012685]
[1641471650161,14.95,3337.7,3337.6,0.45012685]
[1641471651270,1.74203653,3337.4,3336.6,0.03939557]
[1641471651471,1.74203653,3337.4,3336.3,0.05453199]
[1641471651472,3.01218973,3337.0,3336.3,0.05453199]
[1641471651868,3.0,3336.6,3336.4,0.74918]
[1641471652267,3.0,3336.6,3336.5,0.00625266]
[1641471652268,4.93493241,3336.6,3336.5,0.00625266]
[1641471652670,11.95,3336.3,3335.1,1.92865]
[1641471652874,11.95,3336.3,3335.1,0.43]
[1641471652875,3.0,3336.2,3335.1,0.43]
[1641471653095,3.0,3336.2,3335.3,1.49887]
[1641471653499,5.06276249,3335.5,3335.4,0.00625265]
[1641471653692,3.0,3336.2,3335.4,0.00625265]
[1641471653693,6.9843,3336.2,3335.4,0.00625265]
[1641471653896,11.95,3336.1,3335.3,1.49887]
[1641471654092,11.96808896,3336.1,3335.6,1.0]
[1641471654291,0.00341054,3336.0,3335.6,1.0]
[1641471654691,0.00284211,3335.9,3335.6,1.0]
[1641471654893,1.7612055,3335.8,3335.7,0.74929]
[1641471655091,1.76347919,3335.8,3335.7,0.74929]
[1641471655292,1.76347919,3335.8,3335.7,2.24786]
[1641471655695,0.00227369,3335.8,3335.7,1.49857]
[1641471655894,0.01411,3336.1,3335.8,11.55]
[1641471656096,0.01411,3336.1,3335.9,5.57629203]
[1641471656293,3.74,3337.3,3336.1,8.3]
[1641471656294,8.8145,3337.2,3336.1,8.3]
[1641471656499,11.95,3337.2,3336.0,0.07118739]
[1641471656694,0.00284212,3336.3,3336.1,0.43]
[1641471656940,0.01490805,3336.3,3336.1,0.43]
[1641471657138,11.95227369,3336.2,3336.1,0.43]
[1641471657940,13.79909143,3336.2,3336.1,0.43]
[1641471658143,0.00227369,3336.2,3336.1,2.4524892]
[1641471658440,1.2433,3337.1,3336.1,2.4524892]
[1641471658441,5.07453925,3337.1,3336.1,1.9281]
[1641471658643,1.19557369,3337.1,3336.1,1.9281]
[1641471658941,3.0,3336.3,3336.1,1.9281]
[1641471659144,8.59975323,3336.2,3336.1,1.9281]
[1641471659740,8.59975323,3336.2,3336.1,1.4981]
[1641471659939,11.59975323,3336.2,3336.1,1.4981]
[1641471660341,8.59975323,3336.2,3336.1,1.4981]
[1641471661978,6.84975323,3336.2,3336.1,1.4981]
[1641471662580,6.84975323,3336.2,3336.1,1.49921316]
[1641471662780,9.84975323,3336.2,3336.1,1.49921316]
[1641471662983,9.84975323,3336.2,3336.1,1.53427196]
[1641471663181,9.84975323,3336.2,3336.1,1.49921316]
[1641471663182,6.84975323,3336.2,3336.1,1.49921316]
[1641471665135,9.84975323,3336.2,3336.1,1.49921316]
[1641471665336,6.84975323,3336.2,3336.1,1.49921316]
[1641471665537,5.0,3336.2,3336.1,1.53194503]
[1641471665736,5.0,3336.2,3336.1,1.49921316]
[1641471666942,8.0,3336.2,3336.1,1.49921316]
[1641471667238,5.0,3336.2,3336.1,1.5325257]
[1641471667638,5.0,3336.2,3336.1,1.49921316]
[1641471668083,5.0,3336.2,3336.1,1.5318655]
[1641471669783,5.0,3336.2,3336.1,1.49921316]
[1641471669985,5.0,3336.2,3335.8,3.0715789]
[1641471669986,11.95,3336.1,3335.8,1.5731489]